bitfinex/quotes_ETHUSD_20250115
["timestamp","ask_amount","ask_price","bid_price","bid_amount"]
[1736949838351,3.0247,3306.2,3305.5,1.3327]
[1736949838566,4.4049,3306.8,3305.4,0.278]
[1736949838713,1.4049,3306.3,3305.1,1.3327]
[1736949839048,1.4049,3306.3,3304.9,0.278]
[1736949839257,3.02499,3305.8,3304.9,0.278]
[1736949839413,4.42908,3306.7,3305.5,3.02523]
[1736949839613,1.4049,3306.7,3305.7,1.3327]
[1736949839931,3.0244,3306.5,3305.7,1.3327]
[1736949840316,1.4049,3306.7,3305.7,1.3327]
[1736949840639,3.02486,3306.0,3305.3,0.277]
[1736949840840,3.02513,3305.7,3304.9,0.277]
[1736949841041,3.02489,3305.9,3304.9,0.277]
[1736949841220,3.02522,3305.6,3304.9,0.0275]
[1736949841417,3.02527,3305.5,3304.8,0.277]
[1736949841617,1.4049,3305.7,3304.3,1.3327]
[1736949841823,1.4049,3305.7,3304.4,0.277]
[1736949842021,3.02558,3305.2,3304.4,0.277]
[1736949842265,3.02591,3304.8,3304.4,0.277]
[1736949842415,3.02562,3305.1,3304.4,0.277]
[1736949842619,3.02562,3305.1,3304.2,0.1678134]
[1736949842620,3.0259,3304.8,3304.2,0.1678134]
[1736949842861,3.02616,3304.6,3304.2,0.1678134]
[1736949843330,3.02594,3304.8,3304.2,0.1678134]
[1736949843539,0.48876165,3304.8,3304.2,0.1678134]
[1736949843970,3.02599,3304.7,3304.2,0.1678134]
[1736949844263,4.43075,3304.9,3304.2,0.1678134]
[1736949844469,3.02635,3304.3,3304.2,0.1678134]
[1736949844629,3.328985,3304.3,3304.2,0.1678134]
[1736949844825,7.794785,3304.3,3304.2,0.1678134]
[1736949845030,6.328985,3304.3,3304.2,0.1678134]
[1736949845266,1.4658,3304.7,3304.2,0.1678134]
[1736949845440,3.02561,3305.2,3304.2,0.4448134]
[1736949845774,3.87979694,3305.5,3304.2,0.47507611]
[1736949845931,3.02535,3305.4,3304.2,0.4448134]
[1736949846268,3.02604,3304.7,3304.2,0.4448134]
[1736949846469,1.4658,3305.4,3304.2,0.1678134]
[1736949846670,3.02598,3304.8,3304.2,0.1678134]
[1736949846868,3.02585,3304.9,3304.2,0.1678134]
[1736949847034,1.4658,3305.4,3304.3,1.3327]
[1736949847227,1.4658,3305.4,3304.3,4.35903]
[1736949847444,1.4658,3305.8,3304.4,0.48294599]
[1736949847642,1.4658,3306.3,3305.3,3.02539]
[1736949847855,8.28879694,3307.0,3305.4,1.6097]
[1736949848060,8.28879694,3307.0,3306.0,3.0248]
[1736949848372,5.34559694,3307.5,3306.2,1.3327]
[1736949848571,5.34559694,3307.5,3306.3,3.0245]
[1736949848734,5.34559694,3308.0,3306.5,1.3327]
[1736949848934,3.87979694,3308.5,3306.6,0.30724305]
[1736949849136,3.02214,3309.0,3306.6,0.30724305]
[1736949849137,3.02229,3308.8,3306.6,0.30724305]
[1736949849367,1.4658,3308.9,3307.2,1.3327]
[1736949849673,3.0219,3309.2,3307.4,1.3327]
[1736949849839,0.46505018,3309.3,3308.0,1.3327]
[1736949850035,3.02196,3309.2,3308.1,0.277]
[1736949850232,3.02228,3308.8,3308.0,0.277]
[1736949850434,3.02251,3308.6,3308.0,0.277]
[1736949850759,0.302251,3308.5,3308.0,0.277]
[1736949850932,3.02272,3308.3,3308.0,0.277]
[1736949851352,3.87979694,3309.0,3308.0,0.277]
[1736949851653,1.4658,3309.1,3308.0,0.277]
[1736949852282,3.02216,3308.9,3308.0,0.277]
[1736949852471,1.4658,3309.1,3308.0,0.277]
[1736949852673,3.0,3308.9,3308.0,0.277]
[1736949852854,3.48692018,3309.3,3308.0,0.277]
[1736949853054,0.46505018,3309.3,3308.4,4.35528]
[1736949853254,3.87979694,3310.0,3308.4,4.35528]
[1736949853255,3.02144,3309.7,3308.4,1.3327]
[1736949853455,3.02162,3309.5,3308.4,1.3327]
[1736949853691,4.4658,3309.9,3308.4,4.35524]
[1736949853891,4.4658,3309.9,3308.5,0.217]
[1736949854091,3.0,3309.4,3308.5,0.217]
[1736949854315,0.68797969,3309.3,3308.5,0.217]
[1736949855281,2.9558,3310.1,3308.5,0.217]
[1736949855282,2.9558,3310.1,3308.6,0.03022504]
[1736949855485,1.4658,3310.3,3308.7,1.3327]
[1736949855682,1.4658,3310.3,3308.9,3.02209]
[1736949855874,3.0,3310.1,3308.8,3.02224]
[1736949856071,3.0,3310.1,3308.7,4.35503]
[1736949856283,3.02146,3309.7,3308.8,0.277]
[1736949856472,3.0215,3309.7,3308.8,0.277]
[1736949856675,3.0,3309.9,3308.8,0.277]
[1736949857078,6.02124,3309.9,3308.8,0.277]
[1736949857297,1.02010369,3309.8,3308.8,0.277]
[1736949857677,3.02152,3309.6,3308.8,0.277]
[1736949858073,3.0,3309.4,3307.4,3.02344]
[1736949858280,3.87979694,3309.0,3308.2,1.3327]
[1736949858464,3.02229,3308.8,3308.2,1.3327]
[1736949858808,3.02254,3308.5,3308.0,0.277]
[1736949859177,3.02263,3308.4,3308.0,0.277]
[1736949859712,3.02289,3308.1,3307.4,1.1598]
[1736949860011,3.87979694,3308.5,3307.4,1.1598]
[1736949860170,0.86649859,3308.5,3307.6,3.02333]
[1736949860569,0.86649859,3308.5,3307.4,4.18331]
[1736949860901,0.86649859,3308.5,3307.4,1.1598]
[1736949861105,0.302229,3308.7,3307.4,1.1598]
[1736949861304,3.02181,3309.3,3308.0,3.02296]
[1736949861509,1.4606,3309.4,3308.2,3.0227]
[1736949861809,3.02144,3309.7,3308.3,1.4368]
[1736949862008,1.4606,3309.9,3308.3,1.4368]
[1736949862009,3.02161,3309.5,3308.3,1.4368]
[1736949862195,0.302161,3309.4,3308.3,1.1598]
[1736949862394,0.302161,3309.4,3307.5,1.1598]
[1736949862395,3.0,3308.9,3307.5,1.1598]
[1736949862600,3.0,3308.9,3306.3,3.4602]
[1736949862601,7.4833,3308.3,3307.0,0.277]
[1736949862913,3.02334,3307.6,3307.1,0.277]
[1736949863081,3.02324,3307.7,3307.1,0.277]
[1736949863286,0.904639,3307.6,3307.1,0.277]
[1736949863615,3.02344,3307.5,3307.1,0.277]
[1736949863978,3.02353,3307.4,3307.1,0.277]
[1736949864209,3.02357,3307.4,3307.1,0.277]
[1736949864380,3.02306,3307.9,3307.1,0.277]
[1736949864581,3.02379,3307.2,3306.6,0.277]
[1736949864812,0.302379,3307.1,3306.6,0.277]
[1736949865115,3.02408,3306.8,3306.6,0.277]
[1736949865313,3.87979694,3307.1,3306.2,0.277]
[1736949865612,3.87979694,3307.1,3305.4,3.02528]
[1736949865613,3.02461,3306.3,3304.7,3.02592]
[1736949865817,4.48494,3306.5,3305.0,3.02567]
[1736949866019,3.02464,3306.2,3305.1,0.277]
[1736949866224,3.87979694,3306.1,3305.1,0.277]
[1736949866426,3.02525,3305.6,3305.1,0.277]
[1736949866790,3.02529,3305.5,3305.1,0.277]
[1736949867495,3.0248,3306.0,3305.1,0.277]
[1736949867496,3.0,3305.9,3305.1,0.277]
[1736949867698,3.02547,3305.3,3305.1,0.277]
[1736949868087,3.02553,3305.2,3305.1,0.277]
[1736949868523,3.02526,3305.5,3305.1,0.277]
[1736949868524,3.02535,3305.4,3305.1,0.277]
[1736949868840,3.02544,3305.4,3305.1,0.277]
[1736949869042,6.90496694,3305.6,3305.1,0.277]
[1736949869343,0.60248,3305.8,3305.1,0.277]
[1736949869527,3.02576,3305.0,3304.2,0.1678134]
[1736949869728,3.87979694,3305.1,3304.2,0.1678134]
[1736949870018,3.02573,3305.0,3304.2,0.1678134]
[1736949870219,1.4606,3305.3,3304.2,0.4448134]
[1736949870464,6.90497694,3305.6,3304.2,0.4448134]
[1736949870734,3.87979694,3305.6,3304.3,0.71046134]
[1736949870899,3.02491,3305.9,3304.7,3.02598]
[1736949871103,3.02454,3306.3,3305.1,3.02561]
[1736949871339,3.02454,3306.3,3305.2,1.1598]
[1736949871543,3.41064137,3306.3,3305.2,1.1598]
[1736949871751,1.4606,3306.6,3305.2,1.1900535]
[1736949871894,3.87979694,3307.1,3305.8,3.02498]
[1736949872096,3.87979694,3307.1,3305.3,3.57539]
[1736949872097,0.1500689,3307.2,3306.1,3.02469]
[1736949872395,0.1500689,3307.2,3306.0,1.1598]
[1736949872724,0.1500689,3307.2,3305.9,0.30724762]
[1736949872725,3.0233,3307.7,3306.1,0.03024547]
[1736949872947,3.02307,3307.9,3306.3,0.55]
[1736949873150,3.4586887,3308.3,3307.1,3.02376]
[1736949873295,3.4586887,3308.3,3307.2,1.1598]
[1736949873497,0.4359787,3308.3,3307.3,0.277]
[1736949874632,3.4587087,3308.3,3307.3,0.277]
[1736949874990,0.4359787,3308.3,3307.3,3.3006]
[1736949875308,5.24039694,3309.0,3307.4,3.02352]
[1736949875629,3.02224,3308.8,3307.3,0.277]
[1736949875789,3.02261,3308.4,3307.3,0.277]
[1736949876095,3.02279,3308.2,3307.3,0.277]
[1736949876294,3.0224,3308.7,3307.3,0.72305]
[1736949876531,3.0224,3308.7,3307.3,0.277]
[1736949876915,3.0,3308.9,3307.3,0.277]
[1736949877114,5.24039694,3309.0,3307.3,0.277]
[1736949877334,3.02261,3308.4,3307.3,0.277]
[1736949878143,3.02261,3308.4,3307.3,3.3006]
[1736949878339,3.02261,3308.4,3307.4,0.44604]
[1736949878836,3.02261,3308.4,3307.5,0.277]
[1736949879435,3.02244,3308.6,3307.5,0.277]
[1736949879596,5.24039694,3309.5,3307.9,1.7098]
[1736949879933,3.02179,3309.3,3308.0,0.58022807]
[1736949880135,4.38223,3309.5,3308.2,0.55]
[1736949880320,3.02179,3309.3,3308.2,0.55]
[1736949880522,3.02138,3309.8,3308.2,3.57278]
[1736949880723,3.02133,3309.8,3308.2,0.58022486]
[1736949881038,3.02147,3309.7,3308.6,0.55]
[1736949881243,1.3606,3309.9,3308.6,0.55]
[1736949881244,0.302147,3309.6,3308.8,0.55]
[1736949881545,0.15151422,3310.7,3309.2,0.55]
[1736949881546,3.02098,3310.2,3309.2,0.55]
[1736949881742,3.02059,3310.7,3309.2,0.55]
[1736949881946,1.3606,3310.9,3309.7,3.02141]
[1736949882117,3.02016,3311.1,3309.9,0.55]
[1736949882464,4.38061,3311.3,3310.0,0.277]
[1736949882641,0.438061,3311.2,3310.1,0.55]
[1736949882941,4.3802,3311.7,3310.1,0.0302106]
[1736949883145,6.38979719,3312.0,3310.6,0.55]
[1736949883146,3.87979694,3312.0,3310.6,0.55]
[1736949883509,3.01962,3311.7,3310.6,0.55]
[1736949883841,3.321652,3311.6,3310.3,3.02086]
[1736949884062,3.321652,3311.6,3310.4,0.55]
[1736949884375,1.3606,3312.3,3310.5,0.58020375]
[1736949884658,3.01872,3312.7,3311.4,0.55]
[1736949884806,4.49913884,3313.4,3311.7,4.17939]
[1736949884807,3.01845,3313.0,3311.7,4.17939]
[1736949885018,3.01834,3313.1,3311.8,0.55]
[1736949885333,6.90290694,3313.4,3311.8,0.58019339]
[1736949885535,3.01825,3313.2,3311.9,4.17913]
[1736949885746,0.005,3313.4,3311.9,4.17921]
[1736949885934,3.0183,3313.2,3312.0,3.01931]
[1736949886108,0.30183,3313.1,3311.9,1.1598]
[1736949886312,0.005,3313.4,3312.0,0.55]
[1736949886313,3.01826,3313.2,3312.0,0.55]
[1736949886513,3.01832,3313.1,3312.0,0.55]
[1736949887011,3.88479694,3313.4,3312.0,0.55]
[1736949887234,3.88479694,3313.4,3311.9,1.1598]
[1736949887235,3.01868,3312.7,3312.1,0.276]
[1736949887578,0.301868,3312.6,3312.1,0.276]
[1736949887714,3.01868,3312.7,3312.1,0.276]
[1736949887916,3.01841,3313.0,3312.0,0.55]
[1736949888113,3.01841,3313.0,3312.1,0.276]
[1736949888362,0.005,3313.4,3312.1,0.276]
[1736949888363,3.0185,3312.9,3312.1,0.276]
[1736949888571,3.0185,3312.9,3312.0,0.55]
[1736949888721,0.30185,3312.8,3312.0,0.55]
[1736949888918,0.30185,3312.8,3312.2,0.55]
[1736949889223,6.01836,3313.1,3312.1,0.276]
[1736949889428,3.01836,3313.1,3312.1,0.276]
[1736949889677,3.01876,3312.7,3312.1,0.276]
[1736949889819,3.87979694,3312.9,3312.1,0.276]
[1736949890180,3.01897,3312.4,3311.9,1.1598]
[1736949890315,3.01877,3312.7,3311.9,1.1598]
[1736949890663,0.82684069,3312.8,3311.9,1.1598]
[1736949890882,3.0183,3313.2,3312.0,0.55]
[1736949891016,0.005,3313.4,3312.3,1.115]
[1736949891218,0.005,3313.4,3312.7,0.55]
[1736949891422,0.005,3313.4,3312.7,0.58018381]
[1736949891653,0.005,3313.4,3312.7,0.55]
[1736949891951,0.005,3313.4,3312.4,3.04910381]
[1736949892249,0.005,3313.4,3312.5,0.55]
[1736949892435,0.005,3313.4,3312.3,1.115]
[1736949892436,3.02308,3313.4,3312.3,1.115]
[1736949892635,3.01831,3313.2,3312.3,1.115]
[1736949892849,0.302308,3313.3,3312.3,1.115]
[1736949893045,0.302308,3313.3,3312.4,0.55]
[1736949893248,0.005,3313.4,3312.5,3.01878]
[1736949893438,0.005,3313.4,3312.6,0.58018363]
[1736949893768,0.005,3313.4,3312.8,0.55]
[1736949894161,0.005,3313.4,3312.9,1.115]
[1736949894361,0.005,3313.4,3313.0,0.276]
[1736949894831,0.005,3313.4,3312.7,0.276]
[1736949895035,3.01826,3313.2,3312.7,0.276]
[1736949895239,3.01859,3312.8,3312.5,1.115]
[1736949895440,3.01841,3313.0,3312.6,0.276]
[1736949895641,0.301826,3313.1,3312.5,1.391]
[1736949895890,0.301826,3313.1,3312.1,1.115]
[1736949896040,3.01859,3312.8,3312.2,0.276]
[1736949896243,0.68983869,3312.7,3312.2,0.276]
[1736949896436,3.01848,3313.0,3312.2,0.276]
[1736949896640,3.02305,3313.4,3312.2,3.29511]
[1736949896874,0.005,3313.4,3312.5,0.55]
[1736949897092,0.005,3313.4,3312.8,1.115]
[1736949897239,0.005,3313.4,3313.3,4.68313]
[1736949897552,0.005,3313.4,3313.3,4.95913]
[1736949897756,0.005,3313.4,3313.3,4.68313]
[1736949897960,0.005,3313.4,3313.3,1.941]
[1736949898200,0.005,3313.4,3313.3,1.391]
[1736949898559,0.005,3313.4,3313.3,1.941]
[1736949898776,0.005,3313.4,3313.3,4.95913]
[1736949899295,0.005,3313.4,3313.3,4.68313]
[1736949899446,0.005,3313.4,3313.3,4.95913]
[1736949899645,0.005,3313.4,3313.3,4.98930642]
[1736949899900,0.005,3313.4,3313.3,4.95913]
[1736949900193,0.005,3313.4,3313.3,1.941]
[1736949900615,0.005,3313.4,3313.3,1.665]
[1736949901113,0.005,3313.4,3313.3,4.95913]
[1736949901424,0.005,3313.4,3313.3,1.941]
[1736949901579,0.005,3313.4,3313.3,1.115]
[1736949901762,0.005,3313.4,3313.3,1.391]
[1736949902117,0.005,3313.4,3312.6,1.115]
[1736949902258,0.005,3313.4,3312.7,0.276]
[1736949902595,0.69527169,3313.4,3312.6,1.115]
[1736949902913,0.005,3313.4,3312.8,0.276]
[1736949903418,0.005,3313.4,3312.9,0.55]
[1736949903822,0.005,3313.4,3312.6,1.115]
[1736949903992,0.005,3313.4,3312.1,3.01916]
[1736949903993,3.01851,3312.9,3312.2,1.115]
[1736949904290,3.01869,3312.7,3312.3,0.276]
[1736949904456,3.320649,3312.6,3312.3,0.276]
[1736949904656,0.005,3313.4,3312.3,0.276]
[1736949905071,3.01872,3312.7,3312.2,1.115]
[1736949905270,3.01895,3312.5,3311.9,0.276]
[1736949905504,3.87979694,3312.5,3310.7,1.115]
[1736949905660,1.3159,3311.8,3310.8,0.276]
[1736949905995,3.01992,3311.4,3310.8,0.276]
[1736949906168,3.01984,3311.5,3310.8,0.276]
[1736949906377,1.3159,3311.8,3310.7,1.115]
[1736949906589,3.01998,3311.3,3310.6,0.276]
[1736949906778,3.01998,3311.3,3310.2,0.276]
[1736949906779,0.301998,3311.2,3310.2,0.276]
[1736949907116,3.02023,3311.0,3310.2,0.276]
[1736949907324,3.02035,3310.9,3310.2,0.276]
[1736949907460,0.301998,3311.2,3309.8,1.115]
[1736949907835,3.02042,3310.8,3309.9,0.276]
[1736949908047,0.301998,3311.2,3309.9,0.276]
[1736949908539,3.02067,3310.6,3309.9,0.276]
[1736949908831,3.02067,3310.6,3309.0,3.02198]
[1736949908832,3.02097,3310.2,3309.0,3.02205]
[1736949909030,0.302067,3310.6,3309.1,1.391]
[1736949909235,3.02087,3310.3,3309.1,1.391]
[1736949909439,3.02127,3309.9,3309.1,1.391]
[1736949909615,3.02105,3310.1,3309.1,1.391]
[1736949909805,3.87979694,3310.5,3309.1,1.391]
[1736949910008,3.0215,3309.7,3309.2,0.276]
[1736949910205,0.30215,3309.7,3308.9,0.276]
[1736949910435,3.02171,3309.4,3308.5,1.115]
[1736949910639,3.02171,3309.4,3308.9,0.276]
[1736949910825,3.02138,3309.8,3308.5,1.115]
[1736949911138,3.87979694,3310.0,3308.6,0.276]
[1736949911439,3.87979694,3309.5,3308.5,1.115]
[1736949911649,3.02197,3309.1,3308.7,0.276]
[1736949912019,3.02179,3309.3,3308.7,0.276]
[1736949912216,3.02188,3309.2,3308.7,0.276]
[1736949912530,0.38797969,3309.4,3308.8,0.55]
[1736949912731,3.022,3309.1,3308.7,0.276]
[1736949912950,1.3159,3310.2,3308.8,1.115]
[1736949913154,0.68985669,3312.4,3309.1,1.115]
[1736949913155,4.33611,3311.1,3309.1,1.115]
[1736949913464,4.33611,3311.1,3308.8,3.0]
[1736949913465,1.3159,3311.1,3309.6,3.02147]
[1736949913679,1.3159,3311.1,3309.7,0.302147]
[1736949913680,3.0206,3310.6,3309.7,0.302147]
[1736949913838,3.0206,3310.6,3309.5,3.02159]
[1736949914360,0.1617898,3311.0,3309.6,0.55]
[1736949914361,3.0207,3310.5,3309.6,0.55]
[1736949914579,3.02091,3310.3,3309.6,0.55]
[1736949914783,3.02104,3310.2,3309.7,0.276]
[1736949915066,3.87979694,3310.9,3309.7,0.276]
[1736949915067,0.302104,3310.1,3309.7,0.276]
[1736949915326,1.3159,3310.3,3309.7,0.276]
[1736949915490,1.3159,3310.3,3308.9,0.27986361]
[1736949915491,3.0216,3309.5,3309.1,0.276]
[1736949915809,4.3159,3310.3,3309.1,0.276]
[1736949915810,3.87979694,3309.9,3309.1,0.276]
[1736949916100,3.02156,3309.6,3308.9,0.27986361]
[1736949916273,1.3159,3309.6,3308.9,0.27986361]
[1736949916590,3.02074,3310.5,3308.9,3.02214]
[1736949916591,3.87979694,3310.4,3308.9,3.02214]
[1736949916745,3.87979694,3310.4,3309.0,1.14521777]
[1736949916945,3.02118,3310.0,3309.2,0.55]
[1736949917148,3.02118,3310.0,3309.0,1.115]
[1736949917149,3.02111,3310.1,3309.3,0.276]
[1736949917344,3.87979694,3310.4,3309.4,0.55]
[1736949917541,3.02156,3309.6,3309.4,0.55]
[1736949917767,3.02156,3309.6,3309.4,0.826]
[1736949918171,3.0216,3309.5,3309.4,0.276]
[1736949919151,1.3159,3309.7,3309.0,0.276]
[1736949919376,1.3159,3309.7,3308.6,1.0755]
[1736949919573,4.3159,3309.3,3308.1,1.0755]
[1736949919774,3.02263,3308.4,3308.0,10.0]
[1736949919984,3.02288,3308.1,3308.0,10.0]
[1736949920159,1.3159,3308.5,3308.0,10.0]
[1736949920160,3.02272,3308.3,3308.0,10.0]
[1736949920560,3.02279,3308.2,3308.0,10.0]
[1736949920758,1.3159,3308.5,3308.0,10.0]
[1736949920965,3.02288,3308.1,3308.0,10.0]
[1736949921451,0.43384,3308.4,3308.0,10.0]
[1736949921653,3.02232,3308.8,3308.0,10.0]
[1736949921885,3.0219,3309.2,3308.2,1.0755]
[1736949922059,3.02206,3309.0,3308.3,0.55]
[1736949922264,3.02189,3309.2,3308.3,0.55]
[1736949922461,1.3159,3309.8,3308.9,0.55]
[1736949922667,1.3159,3310.3,3309.1,0.55]
[1736949922879,1.3159,3310.3,3309.0,1.708722]
[1736949923079,1.3159,3310.3,3309.3,3.02176]
[1736949923389,1.3159,3310.3,3309.0,1.3515]
[1736949923390,0.1617898,3311.0,3309.5,1.0755]
[1736949923689,3.02015,3311.1,3310.1,3.02103]
[1736949923984,3.02015,3311.1,3310.5,0.55]
[1736949924185,3.02033,3310.9,3310.5,0.55]
[1736949924384,1.3159,3311.2,3310.5,0.55]
[1736949924595,4.33597,3311.2,3310.5,0.55]
[1736949924779,3.01651254,3311.1,3310.5,0.55]
[1736949925454,0.82157669,3311.2,3310.5,0.55]
[1736949925790,0.82157669,3311.2,3310.4,1.0755]
[1736949925791,3.01969,3311.6,3310.7,0.55]
[1736949926088,3.0197,3311.6,3310.5,3.60088511]
[1736949926292,3.01971,3311.6,3310.5,3.57068]
[1736949926450,4.33529,3312.0,3310.5,3.57068]
[1736949926451,1.3159,3312.0,3310.5,0.55]
[1736949926655,1.3159,3311.2,3310.4,1.0755]
[1736949926957,3.87979694,3311.4,3310.4,1.0755]
[1736949926958,6.02002,3311.3,3310.4,1.0755]
[1736949927159,4.01000169,3311.3,3310.4,1.0755]
[1736949927361,4.01000169,3311.3,3310.5,0.55]
[1736949927591,4.3159,3311.6,3310.5,0.55]
[1736949927592,1.3159,3311.6,3310.5,3.57068]
[1736949927908,1.3159,3311.6,3310.2,0.276]
[1736949927909,8.18804694,3312.6,3310.7,1.0755]
[1736949928211,5.16919694,3312.6,3311.5,0.55]
[1736949928367,5.16919694,3312.6,3311.0,0.55]
[1736949928706,3.01922,3312.2,3311.2,0.55]
[1736949929086,3.01922,3312.2,3310.9,1.0755]
[1736949929087,0.301922,3312.2,3311.0,0.55]
[1736949929385,3.0,3311.9,3311.0,0.825]
[1736949929692,3.01969,3311.6,3311.0,0.825]
[1736949929909,3.0,3311.9,3311.0,0.825]
[1736949929910,3.0195,3311.8,3311.0,0.825]
[1736949930072,3.02029,3311.0,3310.5,1.0755]
[1736949930416,3.02005,3311.2,3310.5,1.0755]
[1736949930983,3.02005,3311.2,3310.6,0.55]
[1736949931184,1.59135,3311.7,3310.6,0.55]
[1736949931421,5.16919694,3312.1,3310.6,0.55]
[1736949931596,3.01989,3311.4,3310.6,0.55]
[1736949931927,3.0,3312.0,3310.6,0.55]
[1736949932081,3.0,3311.8,3310.6,0.55]
[1736949932286,3.01959,3311.7,3310.6,0.55]
[1736949932510,3.01993,3311.4,3310.8,0.55]
[1736949932682,3.02024,3311.0,3310.7,0.04942147]
[1736949932886,3.02041,3310.8,3310.2,0.275]
[1736949933819,3.02041,3310.8,3310.3,0.55]
[1736949934016,4.30944,3311.3,3310.3,0.55]
[1736949934191,3.02004,3311.3,3310.3,0.55]
[1736949934393,0.99196869,3311.3,3310.3,0.55]
[1736949934598,3.0202,3311.1,3310.3,0.55]
[1736949935001,4.01194869,3311.3,3310.3,0.55]
[1736949935303,0.99196869,3311.3,3310.3,0.55]
[1736949935506,6.0,3310.8,3310.3,0.55]
[1736949935923,6.0,3310.8,3310.2,0.55565255]
[1736949936482,6.0,3310.8,3310.2,0.28065255]
[1736949936690,6.0,3310.8,3310.3,0.55]
[1736949936883,6.0,3310.8,3310.3,0.533]
[1736949937089,6.0,3310.8,3310.1,1.3505]
[1736949937291,6.0,3310.8,3310.1,4.37147]
[1736949937512,6.0,3310.8,3310.1,1.3505]
[1736949937789,9.62041,3310.8,3310.1,1.3505]
[1736949938545,6.0,3310.8,3310.1,1.3505]
[1736949938921,6.0,3310.8,3310.2,0.55]
[1736949939644,6.0,3310.8,3310.0,0.28108782]
[1736949939847,9.02045,3310.8,3310.0,0.28108782]
[1736949940036,3.0208,3310.4,3310.0,0.28108782]
[1736949940222,0.30208,3310.4,3310.0,0.28108782]
[1736949940423,6.0,3310.8,3310.1,0.04408923]
[1736949940625,6.0,3310.8,3310.2,0.55]
[1736949940827,6.0,3310.8,3309.8,0.58021125]
[1736949941139,6.0,3310.8,3310.5,0.55]
[1736949941724,6.0,3310.8,3310.7,0.55]
[1736949942252,6.0,3310.8,3310.7,0.59407241]
[1736949942617,9.02041,3310.8,3310.7,0.04407241]
[1736949942852,3.02067,3310.6,3309.9,1.0755]
[1736949943351,3.02069,3310.5,3310.0,0.04262045]
[1736949943546,8.0022,3310.8,3310.0,0.04262045]
[1736949943846,6.6,3310.8,3310.0,3.57113]
[1736949944052,6.0,3310.8,3310.3,0.55]
[1736949944351,6.0,3310.8,3310.2,0.55]
[1736949944553,6.0,3310.8,3310.5,0.55]
[1736949944710,3.0206,3310.6,3310.3,0.04261204]
[1736949944910,0.30206,3310.5,3310.3,0.04261204]
[1736949945137,6.0,3310.8,3309.9,1.0755]
[1736949945329,3.02052,3310.7,3309.9,1.0755]
[1736949945541,3.02052,3310.7,3310.0,0.04262045]
[1736949945834,6.0,3310.8,3310.1,0.55]
[1736949946030,9.02045,3310.8,3310.0,0.55]
[1736949946367,6.0,3310.8,3310.2,0.55]
[1736949946877,6.0,3310.8,3310.4,0.55]
[1736949947337,6.0,3310.8,3310.5,0.04260643]
[1736949947738,6.0,3310.8,3310.6,0.55]
[1736949947973,6.0,3310.8,3310.7,4.646]
[1736949948269,6.0,3310.8,3310.7,4.68860083]
[1736949948474,6.0,3310.8,3310.7,5.21246147]
[1736949948972,6.0,3310.8,3310.7,5.49366044]
[1736949949481,6.0,3310.8,3310.7,5.32656044]
[1736949949631,1e-05,3310.8,3310.7,8.32656044]
[1736949950977,1e-05,3310.8,3310.7,5.60156044]
[1736949951130,1e-05,3310.8,3310.7,5.0776998]
[1736949956075,1e-05,3310.8,3310.7,4.79650083]
[1736949956726,1e-05,3310.8,3310.7,5.07868415]
[1736949957984,1e-05,3310.8,3310.7,4.52868415]
[1736949958193,1e-05,3310.8,3310.7,1.50818415]
[1736949958402,1e-05,3310.8,3310.7,4.52868415]
[1736949958627,1e-05,3310.8,3310.7,4.52768415]
[1736949959016,1e-05,3310.8,3310.7,5.07768415]
[1736949959212,1e-05,3310.8,3310.7,5.58545256]
[1736949959416,1e-05,3310.8,3310.7,5.31145256]
[1736949959592,1e-05,3310.8,3310.7,5.58545256]
[1736949960298,1e-05,3310.8,3310.7,8.58545256]
[1736949963696,1e-05,3310.8,3310.7,8.31145256]
[1736949964011,1e-05,3310.8,3310.7,8.58545256]
[1736949964642,1e-05,3310.8,3310.7,9.08545256]
[1736949964842,1.2729,3313.1,3311.4,0.55]
[1736949965044,0.005,3313.4,3312.7,3.01868]
[1736949965327,0.005,3313.4,3312.8,0.31527397]
[1736949965585,0.005,3313.4,3312.8,0.04127397]
[1736949965944,3.01843,3313.0,3312.5,0.274]
[1736949966284,0.005,3313.4,3312.5,0.274]
[1736949966285,1.2729,3312.8,3312.5,0.274]
[1736949966627,1.2729,3312.8,3312.6,0.0397237]
[1736949966941,1.2729,3312.8,3312.5,0.274]
[1736949967438,1.2729,3312.8,3312.1,0.274]
[1736949967633,3.01869,3312.7,3312.1,0.274]
[1736949967842,0.429159,3312.6,3312.1,0.274]
[1736949968032,1.2729,3312.8,3312.2,0.0397349]
[1736949969052,4.29157,3312.8,3312.1,0.274]
[1736949969239,3.0188,3312.6,3312.2,0.03956463]
[1736949969445,3.0188,3312.6,3311.5,0.28154027]
[1736949969446,4.2729,3312.5,3311.5,0.28154027]
[1736949969765,4.2729,3312.5,3311.6,0.03958143]
[1736949969766,3.57728974,3312.2,3311.6,0.03958143]
[1736949969950,3.0,3312.4,3311.6,0.03958143]
[1736949970280,7.29184,3312.5,3311.8,3.01948]
[1736949970281,1.2729,3312.5,3311.8,3.01948]